fUST/lending_fUST_20250718
["ID","MTS","AMOUNT","RATE_DAILY","PERIOD"]
[372939844,1752814283906,-1045.61,0.00022191,2]
[372939845,1752814283915,-538.01,0.00022191,2]
[372939846,1752814283924,-560.07,0.00022191,2]
[372939847,1752814283934,-883.96,0.00022191,2]
[372939848,1752814283944,-1347.37,0.00022191,2]
[372939849,1752814283953,-951.1,0.00022191,2]
[372939850,1752814283963,-642.72,0.00022191,2]
[372939851,1752814283972,-374.71748142,0.00022191,2]
[372939852,1752814283982,-618.09,0.00022191,2]
[372939853,1752814283991,-855.25,0.00022191,2]
[372939854,1752814284000,-4686.52,0.00022191,2]
[372939855,1752814284010,-723.7,0.00022191,2]
[372939856,1752814284020,-1372.5,0.00022191,2]
[372939857,1752814284030,-898.43,0.00022191,2]
[372939858,1752814284039,-3660.04,0.00022191,2]
[372939859,1752814284049,-3275.21,0.00022191,2]
[372939860,1752814284058,-908.6,0.00022191,2]
[372939861,1752814284068,-899.51,0.00022191,2]
[372939862,1752814284077,-884.48,0.00022191,2]
[372939863,1752814284087,-965.48,0.00022191,2]
[372939864,1752814284096,-888.06,0.00022191,2]
[372939865,1752814284105,-766.66,0.00022191,2]
[372939866,1752814284115,-1451.87,0.00022191,2]
[372939867,1752814284124,-789.94,0.00022191,2]
[372939868,1752814284133,-1037.24,0.00022191,2]
[372939869,1752814284142,-3558.83,0.00022191,2]
[372939870,1752814284152,-652.7,0.00022191,2]
[372939871,1752814284161,-5829.63,0.00022191,2]
[372939872,1752814284170,-2475.6,0.00022191,2]
[372939873,1752814284180,-921.62,0.00022191,2]
[372939874,1752814284189,-151.0,0.00022191,7]
[372939875,1752814284199,-727.58,0.00022191,2]
[372939876,1752814284209,-2187.72,0.00022191,2]
[372939877,1752814284218,-1653.45,0.00022191,2]
[372939878,1752814284228,-785.77,0.00022191,2]
[372939879,1752814284237,-1105.74,0.00022191,2]
[372939880,1752814284256,-698.36,0.00022191,2]
[372939881,1752814284270,-822.88,0.00022191,2]
[372939882,1752814284280,-1074.47,0.00022191,2]
[372939883,1752814284290,-656.95,0.00022191,2]
[372939884,1752814284300,-1003.73,0.00022191,2]
[372939885,1752814284310,-809.59,0.00022191,2]
[372939886,1752814284320,-774.39,0.00022191,2]
[372939887,1752814284330,-151.0,0.00022191,7]
[372939888,1752814284340,-575.36,0.00022191,2]
[372939889,1752814284350,-460.0,0.00022191,2]
[372939890,1752814284360,-788.57,0.00022191,2]
[372939891,1752814284370,-3087.49,0.00022191,2]
[372939892,1752814284381,-815.73,0.00022191,2]
[372939893,1752814284391,-866.64,0.00022191,2]
[372939894,1752814284401,-733.98,0.00022191,2]
[372939895,1752814284411,-794.47,0.00022191,2]
[372939896,1752814284421,-480.23,0.00022191,2]
[372939897,1752814284431,-7082.82,0.00022191,2]
[372939898,1752814284441,-1531.18,0.00022191,2]
[372939899,1752814284451,-2622.92,0.00022191,2]
[372939900,1752814284461,-2241.65,0.00022191,2]
[372939901,1752814284471,-5019.62,0.00022191,2]
[372939902,1752814284482,-500.0,0.0002226,3]
[372939903,1752814284492,-151.0,0.00022429,7]
[372939904,1752814284503,-151.0,0.00022429,7]
[372939905,1752814284514,-151.0,0.00022429,7]
[372939906,1752814284524,-159.450959,0.00022429,7]
[372939907,1752814284535,-159.450959,0.00022429,7]
[372939908,1752814284545,-617.58,0.00022465,2]
[372939909,1752814284555,-962.22,0.00022465,2]
[372939910,1752814284566,-996.21,0.00022465,2]
[372939911,1752814284577,-504.97,0.00022465,2]
[372939912,1752814284589,-151.0,0.00022465,7]
[372939913,1752814284599,-471.94,0.00022465,2]
[372939914,1752814284611,-557.15,0.00022465,2]
[372939915,1752814284620,-633.99,0.00022465,2]
[372939916,1752814284630,-480.02,0.00022465,2]
[372939917,1752814284640,-151.0,0.00022465,7]
[372939918,1752814284650,-745.89,0.00022465,2]
[372939919,1752814284660,-907.33,0.00022465,2]
[372939920,1752814284670,-638.44,0.00022465,2]
[372939921,1752814284681,-1126.45,0.00022465,2]
[372939922,1752814284690,-902.44,0.00022465,2]
[372939923,1752814284701,-686.15,0.00022465,2]
[372939924,1752814284711,-654.1,0.00022465,2]
[372939925,1752814284721,-555.02,0.00022465,2]
[372939926,1752814284731,-151.0,0.00022465,7]
[372939927,1752814284742,-712.9,0.00022465,2]
[372939928,1752814284752,-465.47,0.00022465,2]
[372939929,1752814284763,-462.34,0.00022465,2]
[372939930,1752814284779,-156.027261,0.00022465,7]
[372939931,1752814284789,-156.027261,0.00022465,7]
[372939932,1752814284801,-151.0,0.00022465,7]
[372939933,1752814284812,-1670.527849,0.00022465,7]
[372939934,1752814284823,-683.36,0.00022465,2]
[372939935,1752814284834,-1670.527849,0.00022465,7]
[372939936,1752814284846,-151.0,0.00022465,7]
[372939937,1752814284859,-2418.55,0.00022465,2]
[372939938,1752814284870,-1045.61,0.00022465,2]
[372939939,1752814284880,-538.01,0.00022465,2]
[372939940,1752814284895,-560.07,0.00022465,2]
[372939941,1752814284906,-211.916426,0.00022465,7]
[372939942,1752814284916,-211.916426,0.00022465,7]
[372939943,1752814284926,-883.96,0.00022465,2]
[372939944,1752814284936,-1347.37,0.00022465,2]
[372939945,1752814284949,-951.1,0.00022465,2]
[372939946,1752814284959,-642.72,0.00022465,2]
[372939947,1752814284971,-855.25,0.00022465,2]
[372939948,1752814284982,-618.09,0.00022465,2]
[372939949,1752814284995,-4686.52,0.00022465,2]
[372939950,1752814285006,-723.7,0.00022465,2]
[372939951,1752814285018,-1372.5,0.00022465,2]
[372939952,1752814285029,-898.43,0.00022465,2]
[372939953,1752814285040,-3660.04,0.00022465,2]
[372939954,1752814285050,-3275.21,0.00022465,2]
[372939955,1752814285061,-908.6,0.00022465,2]
[372939956,1752814285073,-899.51,0.00022465,2]
[372939957,1752814285085,-884.48,0.00022465,2]
[372939958,1752814285096,-965.48,0.00022465,2]
[372939959,1752814285107,-888.06,0.00022465,2]
[372939960,1752814285116,-766.66,0.00022465,2]
[372939961,1752814285127,-1451.87,0.00022465,2]
[372939962,1752814285137,-789.94,0.00022465,2]
[372939963,1752814285147,-1037.24,0.00022465,2]
[372939964,1752814285157,-3558.83,0.00022465,2]
[372939965,1752814285167,-652.7,0.00022465,2]
[372939966,1752814285178,-5829.63,0.00022465,2]
[372939967,1752814285188,-2475.6,0.00022465,2]
[372939968,1752814285198,-921.62,0.00022465,2]
[372939969,1752814285214,-727.58,0.00022465,2]
[372939970,1752814285226,-2187.72,0.00022465,2]
[372939971,1752814285236,-785.77,0.00022465,2]
[372939972,1752814285248,-1105.74,0.00022465,2]
[372939973,1752814285259,-1653.45,0.00022465,2]
[372939974,1752814285279,-880.554708,0.00022465,7]
[372939975,1752814285429,-698.36,0.00022465,2]
[372939976,1752814285439,-822.88,0.00022465,2]
[372939977,1752814285448,-1074.47,0.00022465,2]
[372939978,1752814285458,-880.554708,0.00022465,7]
[372939979,1752814285468,-656.95,0.00022465,2]
[372939980,1752814285479,-1003.73,0.00022465,2]
[372939981,1752814285489,-809.59,0.00022465,2]
[372939982,1752814285500,-774.39,0.00022465,2]
[372939983,1752814285510,-575.36,0.00022465,2]
[372939984,1752814285520,-574.4848267,0.00022465,2]
[372939985,1752814285530,-788.57,0.00022465,2]
[372939986,1752814285540,-3087.49,0.00022465,2]
[372939987,1752814285550,-815.73,0.00022465,2]
[372939988,1752814285561,-866.64,0.00022465,2]
[372939989,1752814285571,-733.98,0.00022465,2]
[372939990,1752814285580,-794.47,0.00022465,2]
[372939991,1752814285590,-480.23,0.00022465,2]
[372939992,1752814285600,-7082.82,0.00022465,2]
[372939993,1752814285610,-1531.18,0.00022465,2]
[372939994,1752814285620,-2622.92,0.00022465,2]
[372939995,1752814285630,-2241.65,0.00022465,2]
[372939996,1752814285639,-5019.62,0.00022465,2]
[372939997,1752814285649,-151.0,0.00022739,7]
[372939998,1752814285658,-617.65751188,0.00022739,2]
[372939999,1752814285668,-484.183476,0.00022739,7]
[372940000,1752814285678,-962.43,0.00022739,2]
[372940001,1752814285687,-484.183476,0.00022739,7]
[372940002,1752814285697,-996.22839026,0.00022739,2]
[372940003,1752814285707,-505.10193449,0.00022739,2]
[372940004,1752814285715,-161.802857,0.00022739,7]
[372940005,1752814285725,-161.802857,0.00022739,7]
[372940006,1752814285734,-472.0590788,0.00022739,2]
[372940007,1752814285745,-557.35185192,0.00022739,2]
[372940008,1752814285755,-634.0871461,0.00022739,2]
[372940009,1752814285765,-480.24654834,0.00022739,2]
[372940010,1752814285776,-746.04415302,0.00022739,2]
[372940011,1752814285786,-907.4969231,0.00022739,2]
[372940012,1752814285795,-638.57222642,0.00022739,2]
[372940013,1752814285805,-1126.49,0.00022739,2]
[372940014,1752814285814,-902.6,0.00022739,2]
[372940015,1752814285823,-686.38100092,0.00022739,2]
[372940016,1752814285833,-654.1812801,0.00022739,2]
[372940017,1752814285842,-555.13207993,0.00022739,2]
[372940018,1752814285852,-712.97264018,0.00022739,2]
[372940019,1752814285862,-465.50731052,0.00022739,2]
[372940020,1752814285871,-462.38496647,0.00022739,2]
[372940021,1752814285881,-683.59884127,0.00022739,2]
[372940022,1752814285891,-2418.56,0.00022739,2]
[372940023,1752814285900,-1045.62,0.00022739,2]
[372940024,1752814285910,-538.2,0.00022739,2]
[372940025,1752814285920,-560.2855567,0.00022739,2]
[372940026,1752814285929,-884.18,0.00022739,2]
[372940027,1752814285939,-1347.42,0.00022739,2]
[372940028,1752814285948,-951.19,0.00022739,2]
[372940029,1752814285958,-642.94,0.00022739,2]
[372940030,1752814285967,-855.48721038,0.00022739,2]
[372940031,1752814285977,-618.2,0.00022739,2]
[372940032,1752814285987,-4686.6,0.00022739,2]
[372940033,1752814286000,-723.85,0.00022739,2]
[372940034,1752814286010,-1372.53,0.00022739,2]
[372940035,1752814286020,-898.62,0.00022739,2]
[372940036,1752814286029,-3660.13,0.00022739,2]
[372940037,1752814286039,-3275.44769339,0.00022739,2]
[372940038,1752814286049,-908.83,0.00022739,2]
[372940039,1752814286059,-899.63585777,0.00022739,2]
[372940040,1752814286069,-884.71,0.00022739,2]
[372940041,1752814286079,-965.65,0.00022739,2]
[372940042,1752814286088,-888.16,0.00022739,2]
[372940043,1752814286098,-766.82,0.00022739,2]
[372940044,1752814286108,-1452.07,0.00022739,2]
[372940045,1752814286118,-789.97,0.00022739,2]
[372940046,1752814286128,-1037.40589637,0.00022739,2]
[372940047,1752814286137,-3559.02,0.00022739,2]
[372940048,1752814286148,-652.71040052,0.00022739,2]
[372940049,1752814286157,-5829.82,0.00022739,2]
[372940050,1752814286167,-2475.8,0.00022739,2]
[372940051,1752814286176,-921.63094474,0.00022739,2]
[372940052,1752814286186,-727.63424337,0.00022739,2]
[372940053,1752814286196,-2187.94,0.00022739,2]
[372940054,1752814286207,-785.94,0.00022739,2]
[372940055,1752814286219,-1105.85372797,0.00022739,2]
[372940056,1752814286228,-1653.63,0.00022739,2]
[372940057,1752814286250,-698.39,0.00022739,2]
[372940058,1752814286261,-822.9332407,0.00022739,2]
[372940059,1752814286271,-1074.69,0.00022739,2]
[372940060,1752814286281,-657.13,0.00022739,2]
[372940061,1752814286291,-1003.86,0.00022739,2]
[372940062,1752814286302,-809.75,0.00022739,2]
[372940063,1752814286312,-774.59225244,0.00022739,2]
[372940064,1752814286322,-575.53048042,0.00022739,2]
[372940065,1752814286332,-788.8,0.00022739,2]
[372940066,1752814286342,-815.92,0.00022739,2]
[372940067,1752814286352,-3087.55,0.00022739,2]
[372940068,1752814286362,-866.74,0.00022739,2]
[372940069,1752814286372,-734.12,0.00022739,2]
[372940070,1752814286383,-794.7087698,0.00022739,2]
[372940071,1752814286395,-480.42273173,0.00022739,2]
[372940072,1752814286408,-7083.0,0.00022739,2]
[372940073,1752814286418,-1531.24,0.00022739,2]
[372940074,1752814286428,-2623.13,0.00022739,2]
[372940075,1752814286439,-2241.82,0.00022739,2]
[372940076,1752814286450,-5019.78,0.00022739,2]
[372940077,1752814286459,-476.25663856,0.000228,3]
[372940078,1752814286470,-160.0,0.000228,3]
[372940079,1752814286480,-12610.43989422,0.000228,3]
[372940080,1752814286490,-150.0,0.00022822,2]
[372940081,1752814286501,-500.0,0.00022964,2]
[372940082,1752814286511,-160.0,0.00023,3]
[372940083,1752814286521,-839.30593155,0.00023,3]
[372940084,1752814286531,-160.0,0.00023,3]
[372940085,1752814286541,-525.75194068,0.00023,3]
[372940086,1752814286551,-160.0,0.00023,3]
[372940087,1752814286562,-230.89969799,0.00023,3]
[372940088,1752814286572,-215.63268315,0.00023,3]
[372940089,1752814286582,-160.0,0.00023,3]
[372940090,1752814286592,-160.0,0.00023,3]
[372940091,1752814286602,-1732.50139999,0.00023026,2]
[372940092,1752814286612,-261.960094,0.00023119,2]
[372940093,1752814286623,-223.0315306,0.00023128,2]
[372940094,1752814286635,-226.21,0.00023255,2]
[372940095,1752814286644,-1000.0,0.000233,2]
[372940096,1752814286655,-168.0,0.00023618,2]
[372940097,1752814286666,-169.630393,0.00023744,2]
[372940098,1752814286676,-1000.0,0.000238,2]
[372940099,1752814286686,-1732.50139999,0.00023867,2]
[372940100,1752814286696,-436.95928,0.000239,2]
[372940101,1752814286706,-2345.67935283,0.000239,2]
[372940102,1752814286716,-168.0,0.0002393,2]
[372940103,1752814286726,-160.0,0.00024,7]
[372940104,1752814286736,-839.30593155,0.00024,7]
[372940105,1752814286747,-525.75194068,0.00024,7]
[372940106,1752814286756,-160.0,0.00024,7]
[372940107,1752814286769,-230.89969799,0.00024,7]
[372940108,1752814286779,-215.63268315,0.00024,7]
[372940109,1752814286789,-160.0,0.00024,7]
[372940110,1752814286799,-168.0,0.00024123,2]
[372940111,1752814286811,-3103.06024345,0.00024156,2]
[372940112,1752814286820,-2012.86,0.000242,7]
[372940113,1752814286830,-1000.0,0.000243,2]
[372940114,1752814286840,-800.0,0.00024329,2]
[372940115,1752814286850,-468.185353,0.00024401,8]
[372940116,1752814286860,-231.28369723,0.00024497,2]
[372940117,1752814286870,-168.0,0.00024547,2]
[372940118,1752814286880,-226.21,0.0002461,2]
[372940119,1752814286890,-150.0,0.00024637,2]
[372940120,1752814286900,-3103.06024346,0.00024651,2]
[372940121,1752814286910,-380.0,0.00024658,2]
[372940122,1752814286919,-209.91046531,0.00024658,2]
[372940123,1752814286929,-151.0,0.00024658,2]
[372940124,1752814286939,-151.0,0.00024658,2]
[372940125,1752814286949,-151.96925703,0.00024658,2]
[372940126,1752814286958,-959.77325592,0.00024658,2]
[372940127,1752814286968,-151.85149253,0.00024658,2]
[372940128,1752814286978,-151.0,0.00024658,2]
[372940129,1752814286988,-151.0,0.00024658,2]
[372940130,1752814287000,-151.0,0.00024658,2]
[372940131,1752814287010,-500.0,0.00024658,2]
[372940132,1752814287019,-151.0,0.00024658,2]
[372940133,1752814287029,-151.0,0.00024658,2]
[372940134,1752814287151,-151.0,0.00024658,2]
[372940135,1752814287161,-151.0,0.00024658,2]
[372940136,1752814287170,-472.0,0.00024658,2]
[372940137,1752814287180,-500.0,0.00024658,2]
[372940138,1752814287189,-151.0,0.00024658,2]
[372940139,1752814287199,-500.0,0.00024658,2]
[372940140,1752814287209,-151.0,0.00024658,2]
[372940141,1752814287220,-606.0,0.00024658,2]
[372940142,1752814287230,-151.0,0.00024658,2]
[372940143,1752814287240,-151.73342532,0.00024658,2]
[372940144,1752814287251,-151.0,0.00024658,2]
[372940145,1752814287260,-500.0,0.00024658,2]
[372940146,1752814287269,-151.0,0.00024658,2]
[372940147,1752814287279,-151.53659292,0.00024658,2]
[372940148,1752814287293,-600.0,0.00024675,2]
[372940149,1752814287303,-1732.50139999,0.00024707,2]
[372940150,1752814287313,-647.0,0.00024747,2]
[372940151,1752814287323,-2156.0,0.00024747,2]
[372940152,1752814287333,-968.0,0.00024747,2]
[372940153,1752814287344,-575.94308904,0.000248,2]
[372940154,1752814287355,-2000.0,0.000248,2]
[372940155,1752814287366,-22797.71,0.000248,2]
[372940156,1752814287376,-151.0,0.000248,7]
[372940157,1752814287387,-151.0,0.000248,7]
[372940158,1752814287397,-151.0,0.000248,7]
[372940159,1752814287407,-151.0,0.000248,7]
[372940160,1752814287419,-151.0,0.000248,7]
[372940161,1752814287430,-151.0,0.000248,7]
[372940162,1752814287440,-229.860349,0.000248,7]
[372940163,1752814287451,-229.860349,0.000248,7]
[372940164,1752814287460,-151.0,0.000248,7]
[372940165,1752814287470,-179.995825,0.000248,7]
[372940166,1752814287480,-179.995825,0.000248,7]
[372940167,1752814287489,-1000.0,0.000248,2]
[372940168,1752814287502,-295211.199615,0.000248,2]
[372940169,1752814287511,-500.0,0.00024873,2]
[372940170,1752814287521,-151.0,0.000249,7]
[372940171,1752814287531,-153.438271,0.000249,7]
[372940172,1752814287541,-151.0,0.000249,7]
[372940173,1752814287551,-151.0,0.000249,7]
[372940174,1752814287561,-151.0,0.000249,7]
[372940175,1752814287571,-371.984887,0.000249,7]
[372940176,1752814287582,-371.984887,0.000249,7]
[372940177,1752814287592,-225.240953,0.000249,7]
[372940178,1752814287602,-484.183476,0.000249,7]
[372940179,1752814287611,-153.0,0.000249,3]
[372940180,1752814287621,-153.0,0.000249,3]
[372940181,1752814287631,-153.0,0.000249,3]
[372940182,1752814287640,-153.0,0.000249,3]
[372940183,1752814287650,-1482.04951606,0.000249,3]
[372940184,1752814287659,-153.0,0.000249,3]
[372940185,1752814287670,-153.0,0.000249,3]
[372940186,1752814287679,-153.0,0.000249,3]
[372940187,1752814287688,-153.18245295,0.000249,3]
[372940188,1752814287698,-484.183476,0.000249,7]
[372940189,1752814287708,-1974.61963252,0.000249,2]
[372940190,1752814287717,-161.802857,0.000249,7]
[372940191,1752814287728,-161.802857,0.000249,7]
[372940192,1752814287738,-151.0,0.000249,7]
[372940193,1752814287749,-151.0,0.000249,7]
[372940194,1752814287759,-229.860349,0.000249,7]
[372940195,1752814287772,-229.860349,0.000249,7]
[372940196,1752814287782,-151.0,0.000249,7]
[372940197,1752814287792,-179.995825,0.000249,7]
[372940198,1752814287802,-179.995825,0.000249,7]
[372940199,1752814287812,-151.0,0.000249,7]
[372940200,1752814287822,-156.027261,0.000249,7]
[372940201,1752814287831,-156.027261,0.000249,7]
[372940202,1752814287842,-151.0,0.000249,7]
[372940203,1752814287853,-1670.527849,0.000249,7]
[372940204,1752814287863,-1670.527849,0.000249,7]
[372940205,1752814287873,-151.0,0.000249,7]
[372940206,1752814287883,-211.916426,0.000249,7]
[372940207,1752814287893,-151.0,0.000249,7]
[372940208,1752814287903,-211.916426,0.000249,7]
[372940209,1752814287913,-151.0,0.000249,7]
[372940210,1752814287922,-447584.14912243,0.000249,2]
[372940211,1752814288115,-1373.94031841,0.000249,2]
[372940212,1752814288127,-1123.90315612,0.000249,2]
[372940213,1752814288138,-6652.2980982,0.000249,2]
[372940214,1752814289643,-0.0057042,0.00016438,2]
[372940215,1752814289660,-459.9942958,0.00016438,2]
[372940216,1752814289676,-460.0,0.00016438,2]
[372940217,1752814289690,-176.0857042,0.00016438,2]
[372940218,1752814290027,-283.9142958,0.00016438,2]
[372940219,1752814290038,-460.0,0.00016438,2]
[372940220,1752814290049,-460.0,0.00016438,2]
[372940221,1752814290059,-460.0,0.00016438,2]
[372940222,1752814290070,-460.0,0.00016438,2]
[372940223,1752814290081,-460.0,0.00016438,2]
[372940224,1752814290092,-500.0,0.00016438,2]
[372940225,1752814290101,-188.90071576,0.00016712,2]
[372940226,1752814290433,-460.0,0.00016438,2]
[372940227,1752814290444,-271.09928424,0.00016712,2]
[372940228,1752814290453,-460.0,0.00016712,2]
[372940229,1752814290463,-460.0,0.00016712,2]
[372940230,1752814290472,-460.0,0.00016712,2]
[372940231,1752814290481,-460.0,0.00016712,2]
[372940232,1752814290490,-460.0,0.00016986,2]
[372940233,1752814290500,-460.0,0.00016986,2]
[372940234,1752814290510,-460.0,0.0001726,2]
[372940235,1752814290519,-460.0,0.0001726,2]
[372940236,1752814290529,-460.0,0.0001726,2]
[372940237,1752814290538,-460.0,0.00017534,2]
[372940238,1752814290547,-2466.27,0.00017534,2]
[372940239,1752814290557,-460.0,0.00017534,2]
[372940240,1752814290566,-460.0,0.00017534,2]
[372940241,1752814290576,-460.0,0.00017808,2]
[372940242,1752814290585,-2466.27,0.00017808,2]
[372940243,1752814290594,-460.0,0.00017808,2]
[372940244,1752814290603,-460.0,0.00017808,2]
[372940245,1752814290613,-460.0,0.00018082,2]
[372940246,1752814290623,-2466.27,0.00018082,2]
[372940247,1752814290631,-460.0,0.00018082,2]
[372940248,1752814290641,-460.0,0.00018082,2]
[372940249,1752814290650,-556.90864065,0.00018356,2]
[372940250,1752814290660,-2466.27,0.00018356,2]
[372940251,1752814290670,-460.0,0.00018356,2]
[372940252,1752814290679,-460.0,0.0001863,2]
[372940253,1752814290689,-2466.27,0.0001863,2]
[372940254,1752814290698,-352.216426,0.00018804,2]
[372940255,1752814290708,-460.0,0.00018904,2]
[372940256,1752814290718,-2466.27,0.00018904,2]
[372940257,1752814290728,-460.0,0.00019178,2]
[372940258,1752814290738,-210.26760973,0.00019452,2]
[372940259,1752814290749,-352.216426,0.00019726,2]
[372940260,1752814290759,-352.216426,0.00020821,2]
[372940261,1752814290771,-352.216426,0.00022,7]
[372940262,1752814290780,-55863.05621333,0.000249,2]
[372940263,1752814291104,-460.0,0.00016438,2]
[372940264,1752814291114,-460.0,0.00016438,2]
[372940265,1752814291123,-460.72586002,0.00016438,2]
[372940266,1752814291132,-460.0,0.00016438,2]
[372940267,1752814291142,-460.0,0.00016438,2]
[372940268,1752814291151,-460.0,0.00016712,2]
[372940269,1752814291161,-460.0,0.00016712,2]
[372940270,1752814291170,-460.0,0.00016712,2]
[372940271,1752814291180,-460.0,0.00016986,2]
[372940272,1752814291190,-201.26369959,0.0001726,2]
[372940273,1752814291560,-258.73630041,0.0001726,2]
[372940274,1752814291569,-460.0,0.00017534,2]
[372940275,1752814291578,-460.0,0.00018356,2]
[372940276,1752814291587,-460.0,0.0001863,2]
[372940277,1752814291596,-460.0,0.0001863,2]
[372940278,1752814291605,-460.0,0.00018904,2]
[372940279,1752814291614,-460.0,0.00018904,2]
[372940280,1752814291623,-2466.27,0.00019178,2]
[372940281,1752814291632,-460.0,0.00019178,2]
[372940282,1752814291642,-460.0,0.00019178,2]
[372940283,1752814291651,-2466.27,0.00019452,2]
[372940284,1752814291660,-460.0,0.00019452,2]
[372940285,1752814291669,-460.0,0.00019452,2]
[372940286,1752814291678,-2466.27,0.00019726,2]
[372940287,1752814291687,-460.0,0.00019726,2]
[372940288,1752814291696,-601.45,0.00019726,2]
[372940289,1752814291705,-2466.27,0.0002,2]
[372940290,1752814291714,-2466.27,0.00020273,2]
[372940291,1752814291723,-2466.27,0.00020547,2]
[372940292,1752814291732,-2466.27,0.00020821,2]
[372940293,1752814291740,-2466.27,0.00021095,2]
[372940294,1752814291750,-2466.27,0.00021369,2]
[372940295,1752814291759,-797.65581452,0.00021643,2]
[372940296,1752814294332,16045.16532767,0.00016038,2]
[372940297,1752814294357,40000.0,0.00016038,2]
[372940298,1752814294382,40000.0,0.00016038,2]
[372940299,1752814294406,40000.0,0.00016038,2]
[372940300,1752814294437,40000.0,0.00016038,2]
[372940301,1752814294464,40000.0,0.00016038,2]
[372940302,1752814294488,40000.0,0.00016038,2]
[372940303,1752814294514,40000.0,0.00016038,2]
[372940304,1752814294537,40000.0,0.00016038,2]
[372940305,1752814294561,33954.83467233,0.00016038,2]
[372940306,1752814294813,351.38,0.00016028,3]
[372940307,1752814435703,271.6745258,0.00015945,2]
[372940308,1752814441266,150.0,0.000179,30]
[372940309,1752814448429,5422.11080187,0.00016038,2]
[372940310,1752814448454,40000.0,0.00016038,2]
[372940311,1752814448478,40000.0,0.00016038,2]
[372940312,1752814448503,40000.0,0.00016038,2]
[372940313,1752814448527,40000.0,0.00016038,2]
[372940314,1752814448553,40000.0,0.00016038,2]
[372940315,1752814448577,40000.0,0.00016038,2]
[372940316,1752814448601,40000.0,0.00016038,2]
[372940317,1752814448625,40000.0,0.00016038,2]
[372940318,1752814448649,40000.0,0.00016038,2]
[372940319,1752814448675,4577.88919813,0.00016038,2]
[372940346,1752814702808,294.93077,0.00013699,2]
[372940348,1752814736884,163.00471548,0.00015806,2]
[372940349,1752814874398,2488.2,0.00023,30]
[372940350,1752814896266,436.95928,0.00027397,120]
[372940351,1752814896288,63.04072,0.00027397,120]
[372940352,1752814896535,420.59593517,0.00027397,120]
[372940353,1752814900642,1446.3327221,0.00015321,2]
[372940356,1752815133865,187.78969057,0.000161,2]
[372940357,1752815136092,-166.58103911,0.00016159,2]
[372940358,1752815235188,3019.62,0.0001833,6]
[372940360,1752815314729,24900.0,0.00015321,2]
[372940364,1752815407846,412.895683,0.00015327,2]
[372940435,1752815432233,-39.34324775,0.00016159,2]
[372940437,1752815432243,-500.0,0.00016159,2]
[372940439,1752815432254,-446.88854714,0.00016159,2]
[372940441,1752815432264,-300.0,0.00016272,2]
[372940443,1752815432274,-1200.0,0.00016272,2]
[372940445,1752815432283,-300.0,0.00016272,2]
[372940447,1752815432293,-300.0,0.00016272,2]
[372940449,1752815432303,-18496.65934713,0.00016273,2]
[372940451,1752815432312,-397.58456941,0.00016273,2]
[372940453,1752815432325,-428.10502748,0.00016293,2]
[372940455,1752815432334,-500.0,0.00016293,2]
[372940457,1752815432344,-493.5364603,0.00016293,2]